bitfinex/quotes_ETHUSD_20220202
["timestamp","ask_amount","ask_price","bid_price","bid_amount"]
[1643819436599,1.24651144,2659.1,2658.9,5.78233703]
[1643819436600,0.94651144,2659.1,2658.9,5.78233703]
[1643819436999,1.24651144,2659.1,2659.0,4.3937686]
[1643819437400,0.3,2659.1,2659.0,0.0437686]
[1643819437795,3.18777137,2659.3,2659.0,0.0437686]
[1643819437996,2.18777137,2659.3,2659.0,0.0437686]
[1643819438198,1.0,2659.2,2659.0,0.0437686]
[1643819438397,3.18777137,2659.3,2659.0,0.0437686]
[1643819439660,0.94089,2659.2,2659.0,0.00455719]
[1643819439855,2.592,2659.1,2659.0,0.00455719]
[1643819440056,0.542,2659.1,2659.0,0.00455719]
[1643819440254,1.842,2659.1,2659.0,0.00455719]
[1643819440453,0.842,2659.1,2658.5,1.0176192]
[1643819440655,1.88188,2659.0,2658.5,0.188]
[1643819440855,3.25434689,2659.0,2658.9,0.00455726]
[1643819441258,3.25434689,2659.0,2658.9,0.04889429]
[1643819441456,3.79634689,2659.0,2658.9,0.04889429]
[1643819441655,7.40376263,2659.0,2658.9,0.04433703]
[1643819442057,6.78233,2658.9,2658.8,0.00459403]
[1643819442257,11.23343153,2658.9,2658.8,0.00459403]
[1643819442456,10.5067153,2658.9,2658.8,0.00459403]
[1643819442659,5.6067153,2658.9,2658.1,4.5368732]
[1643819442856,0.94121,2658.7,2658.1,4.5368732]
[1643819443056,1.88244,2658.6,2658.1,4.5368732]
[1643819443256,2.42444,2658.6,2658.1,4.5368732]
[1643819443497,1.88244,2658.6,2658.1,4.5368732]
[1643819443703,3.88434,2658.6,2658.1,4.5368732]
[1643819443904,2.88434,2658.6,2658.1,4.5368732]
[1643819444099,1.0,2658.5,2658.1,4.5368732]
[1643819444301,0.37246689,2658.4,2657.7,0.788]
[1643819444501,0.37246689,2658.4,2657.7,0.6]
[1643819444900,3.10380895,2658.4,2657.7,0.788]
[1643819445102,1.31932918,2658.4,2657.7,0.788]
[1643819445303,1.31932918,2658.4,2658.0,0.95179851]
[1643819445701,1.31932918,2658.4,2657.7,0.6]
[1643819445702,0.3,2658.3,2657.7,0.6]
[1643819445902,1.31932918,2658.4,2657.7,0.6]
[1643819446704,1.31932918,2658.4,2657.9,0.00482828]
[1643819447147,0.9412,2658.3,2657.9,0.00482828]
[1643819447551,1.2412,2658.3,2657.9,0.00482828]
[1643819447750,2.2412,2658.3,2657.7,0.6]
[1643819447956,2.2412,2658.3,2658.0,0.00482824]
[1643819448750,2.2412,2658.3,2657.7,0.74282824]
[1643819448953,0.188,2658.6,2658.1,0.217783]
[1643819449162,0.188,2658.9,2658.0,0.00171891]
[1643819449351,1.02607997,2659.0,2658.1,0.20365371]
[1643819449352,0.88788,2659.0,2658.1,0.20365371]
[1643819449753,0.88788,2659.0,2658.1,0.188]
[1643819449951,0.88788,2659.0,2658.4,0.73535628]
[1643819450155,0.88788,2659.0,2658.5,0.188]
[1643819450354,0.88788,2659.0,2658.5,0.18954132]
[1643819450556,0.64588,2659.0,2658.5,0.18954132]
[1643819450999,0.64588,2659.0,2658.5,0.00154132]
[1643819451198,0.94099,2658.9,2658.6,0.00154132]
[1643819451799,0.94099,2658.9,2658.4,0.00154132]
[1643819451800,1.94099,2658.9,2658.4,0.00154132]
[1643819451998,0.94099,2658.9,2658.4,0.00154132]
[1643819452400,0.188,2658.8,2658.1,0.00154132]
[1643819452601,0.94126,2658.6,2658.1,0.00154132]
[1643819452799,0.188,2658.5,2658.1,0.00154132]
[1643819453205,1.13409319,2658.5,2658.1,0.00154132]
[1643819453404,1.0,2658.3,2658.1,0.00154132]
[1643819453600,6.38144,2658.2,2657.9,0.00501409]
[1643819453798,2.06710129,2658.2,2657.8,0.00154132]
[1643819454001,1.88285,2658.0,2657.8,0.00154132]
[1643819454201,0.188,2657.9,2657.1,0.9373225]
[1643819454400,0.188,2657.9,2657.2,0.005]
[1643819454655,1.188,2657.9,2657.0,0.00154132]
[1643819455059,2.1294838,2657.9,2657.0,0.00154132]
[1643819455257,2.1294838,2657.9,2657.0,0.73671056]
[1643819455457,2.1294838,2657.9,2656.9,0.20509753]
[1643819455458,2.1294838,2657.9,2657.1,0.00654132]
[1643819455658,2.61795727,2657.8,2657.1,0.00154132]
[1643819455860,4.29042416,2657.8,2657.1,0.00154132]
[1643819456258,1.67246689,2657.8,2657.1,0.00154132]
[1643819456460,2.98455687,2657.8,2657.6,0.00499201]
[1643819456658,5.70078174,2657.8,2657.6,0.00499201]
[1643819457060,2.61208998,2657.8,2657.6,0.00499201]
[1643819457260,2.61208998,2657.8,2657.1,0.00154132]
[1643819457660,4.03658534,2657.8,2657.6,0.00499201]
[1643819458061,1.3,2657.8,2657.6,0.00499201]
[1643819458260,0.3,2657.8,2657.6,0.00499201]
[1643819458511,3.08035766,2657.8,2657.1,0.00154132]
[1643819458909,1.3,2657.8,2657.6,0.00499201]
[1643819459305,0.3,2657.8,2657.6,0.00499201]
[1643819459505,2.42868314,2657.9,2657.6,0.00499201]
[1643819459808,2.42868314,2657.9,2657.2,0.188]
[1643819460005,2.42868314,2657.9,2657.6,0.00499201]
[1643819460906,2.42868314,2657.9,2657.1,0.00154132]
[1643819461110,2.65132911,2657.8,2657.2,0.188]
[1643819461306,3.65132911,2657.8,2657.7,0.55982021]
[1643819461510,4.5889904,2657.8,2657.7,0.55982021]
[1643819461707,4.7889904,2657.8,2657.7,0.55982021]
[1643819461905,2.12486129,2657.8,2657.7,0.40360831]
[1643819462163,2.12486129,2657.8,2657.7,0.39861634]
[1643819462164,1.10781,2657.8,2657.7,0.39861634]
[1643819462362,0.1424,2657.8,2657.7,0.39861634]
[1643819462561,0.33119934,2657.9,2657.7,0.39861634]
[1643819462959,0.33039934,2657.9,2657.7,0.39861634]
[1643819463161,0.1472,2657.8,2657.7,0.39861634]
[1643819463362,0.33439934,2657.9,2657.7,0.39861634]
[1643819463563,0.32959934,2657.9,2657.7,0.40360831]
[1643819463766,0.1416,2657.9,2657.7,0.40360831]
[1643819463963,1.1196,2658.0,2657.7,0.40360831]
[1643819463964,1.1196,2658.0,2657.8,0.188]
[1643819464363,1.1196,2658.0,2657.8,0.19615702]
[1643819464563,1.1196,2658.0,2657.8,0.188]
[1643819464963,1.1196,2658.0,2657.8,0.19280713]
[1643819465166,0.0048061,2658.3,2657.9,5.85]
[1643819465367,0.0048061,2658.3,2658.0,0.188]
[1643819465566,0.0048061,2658.3,2658.0,0.19735697]
[1643819465923,2.49865728,2659.3,2658.1,5.85]
[1643819466120,2.49865728,2659.5,2658.2,11.1713]
[1643819466323,0.00480634,2658.3,2658.2,11.1713]
[1643819466719,6.34e-06,2658.3,2658.2,12.17129999]
[1643819466917,1.14335434,2659.5,2658.2,11.6233]
[1643819467220,0.88788,2659.6,2658.6,0.99999999]
[1643819467421,0.88788,2659.6,2658.7,0.188]
[1643819467619,0.88788,2659.6,2658.7,0.19706436]
[1643819467820,0.88788,2659.6,2658.7,0.18954217]
[1643819468020,0.88788,2659.6,2658.7,0.35838811]
[1643819468221,0.88788,2659.6,2659.2,0.93816027]
[1643819468421,0.88788,2659.6,2658.8,0.00154217]
[1643819468625,0.00329524,2659.3,2658.9,0.188]
[1643819469022,0.00329524,2659.3,2658.7,0.188]
[1643819469423,0.00329524,2659.3,2658.9,0.67205085]
[1643819469652,0.00329524,2659.3,2659.0,0.188]
[1643819469851,1.0,2659.8,2659.0,0.188]
[1643819469852,0.00329524,2659.1,2659.0,0.188]
[1643819470053,0.00329524,2659.1,2659.0,5.538]
[1643819470658,0.3,2659.8,2659.0,5.538]
[1643819470854,0.3,2659.8,2659.0,5.55099824]
[1643819471057,0.00329524,2659.2,2659.0,5.56824667]
[1643819471255,0.00329524,2659.2,2659.0,5.55524843]
[1643819471654,0.00329524,2659.2,2659.0,5.538]
[1643819471854,0.21896949,2659.9,2659.1,6.5789637]
[1643819472059,3.72841158,2660.4,2659.2,4.6325]
[1643819472060,0.94056,2660.2,2659.2,4.6325]
[1643819472255,1.24056,2660.2,2659.2,4.6325]
[1643819472658,3.88679193,2660.2,2659.2,4.6325]
[1643819472856,1.1879,2660.1,2659.2,4.6325]
[1643819473058,0.9406,2659.9,2659.2,4.6325]
[1643819473257,0.1879,2659.8,2659.2,4.6325]
[1643819473504,0.21136292,2659.4,2659.2,4.6325]
[1643819473904,0.39926292,2659.4,2659.2,4.6325]
[1643819474108,1.07172981,2659.4,2659.2,4.6325]
[1643819474405,0.94082,2659.3,2659.2,0.188]
[1643819474603,0.94082,2659.3,2658.6,4.83484217]
[1643819474804,0.9409181,2659.2,2658.6,4.83484217]
[1643819475203,1.2409181,2659.2,2658.7,0.00154217]
[1643819475602,2.1818681,2659.2,2658.7,0.00154217]
[1643819475805,0.94095,2659.0,2658.7,0.00154217]
[1643819476005,2.90505451,2658.9,2658.4,0.00653895]
[1643819476209,0.37246689,2658.8,2658.4,0.00653895]
[1643819476407,3.53733196,2658.7,2658.4,0.00653895]
[1643819476707,0.17956855,2658.6,2658.2,0.00154217]
[1643819476904,0.94128,2658.6,2658.2,0.00154217]
[1643819477154,1.24114,2658.7,2658.4,0.00499641]
[1643819477155,0.3,2658.7,2658.4,0.00499641]
[1643819477355,1.3,2658.8,2658.4,0.00499641]
[1643819477555,0.3,2658.8,2658.4,0.00499641]
[1643819477754,1.2410104,2658.9,2658.4,0.00499641]
[1643819477954,1.2410104,2658.9,2658.2,0.00154217]
[1643819478354,1.2410104,2658.9,2658.4,0.00450764]
[1643819478556,3.1231404,2658.9,2658.4,0.00450764]
[1643819478954,1.0,2658.8,2658.4,0.00450764]
[1643819479154,0.21852335,2658.7,2658.4,0.00450764]
[1643819479558,1.15954335,2658.7,2658.4,0.0045077]
[1643819479757,0.74798096,2658.6,2658.4,0.0045077]
[1643819480062,2.62678219,2658.5,2658.4,0.00323756]
[1643819480257,3.22797659,2658.5,2658.4,0.00323756]
[1643819480457,4.22797659,2658.5,2657.5,0.18954217]
[1643819480656,0.2056028,2657.9,2657.5,0.18954217]
[1643819480910,0.2056028,2657.9,2657.6,0.00154217]
[1643819480911,2.98245517,2657.9,2657.6,0.00154217]
[1643819481113,3.98245517,2657.9,2657.6,0.00154217]
[1643819481316,2.61845543,2657.8,2657.6,0.00154217]
[1643819481610,2.08651,2657.7,2657.2,0.00154217]
[1643819481815,2.52737741,2657.6,2657.2,0.00154217]
[1643819482018,1.88315,2657.4,2656.7,0.00654217]
[1643819482216,1.8832749,2657.5,2656.7,0.00654217]
[1643819482217,1.0,2657.5,2656.7,0.00654217]
[1643819482411,0.3,2657.6,2656.8,1.78249616]
[1643819482613,0.3,2657.6,2656.9,1.60103833]
[1643819482810,0.3,2657.7,2657.0,0.005]
[1643819483011,0.3,2657.7,2656.9,0.00154217]
[1643819483210,1.4469528,2657.9,2657.0,0.00485116]
[1643819483609,0.144,2657.8,2657.0,0.00485116]
[1643819483809,0.1456,2657.8,2657.0,0.00485116]
[1643819484009,1.5917528,2657.9,2656.9,0.00154217]
[1643819484210,0.1432,2657.8,2656.9,0.00154217]
[1643819484412,1.5056028,2657.9,2657.3,0.00485096]
[1643819484413,0.5056028,2657.9,2657.3,0.00485096]
[1643819484854,0.5056028,2657.9,2657.4,0.188]
[1643819485055,0.2241,2658.1,2657.5,0.00154217]
[1643819485259,0.2241,2658.1,2657.6,1.12796309]
[1643819485755,0.2241,2658.1,2657.7,1.59394024]
[1643819485955,0.2241,2658.1,2657.8,0.188]
[1643819486157,0.2241,2658.1,2657.8,4.8499]
[1643819486356,0.2241,2658.1,2657.8,4.6619]
[1643819486756,0.2241,2658.1,2657.8,4.66689675]
[1643819487161,0.2241,2658.1,2657.9,0.79246164]
[1643819487855,0.188,2658.7,2657.8,4.6619]
[1643819488057,0.13819997,2658.9,2657.9,0.00499671]
[1643819488257,0.13819997,2658.9,2657.9,0.00653888]
[1643819488258,0.20549696,2658.6,2657.9,0.00653888]
[1643819489109,0.20549696,2658.6,2658.1,0.00499655]
[1643819489308,1.69349696,2658.6,2658.1,0.00499655]
[1643819489508,0.69349696,2658.6,2658.1,0.00499655]
[1643819489715,1.69349696,2658.6,2658.1,0.00499655]
[1643819489911,0.69349696,2658.6,2658.1,0.00499655]
[1643819490209,0.69349696,2658.6,2658.0,0.83542785]
[1643819490412,0.50549696,2658.6,2658.2,0.00499649]
[1643819491014,0.69349696,2658.6,2658.2,0.00499649]
[1643819491213,0.37246689,2658.5,2657.9,0.00154217]
[1643819491613,1.69349696,2658.6,2658.3,0.00499646]
[1643819491812,0.50549696,2658.6,2658.3,0.00499646]
[1643819492461,0.188,2658.8,2657.9,0.00154217]
[1643819492666,0.0049952,2659.0,2658.3,0.00499652]
[1643819493460,0.0049952,2659.0,2658.4,0.90177482]
[1643819493461,0.22474243,2658.7,2658.4,0.90177482]
[1643819493658,0.22474243,2658.7,2658.1,0.00154217]
[1643819493858,7.4,2659.3,2658.2,0.188]
[1643819494060,0.00499544,2659.0,2658.3,0.00499677]
[1643819494261,0.00499544,2659.0,2658.4,0.188]
[1643819494863,0.17393,2658.8,2658.4,0.188]
[1643819495060,0.17393,2658.8,2658.4,0.71772956]
[1643819495261,0.00499551,2659.0,2658.5,0.188]
[1643819496108,1.0,2659.2,2658.5,0.188]
[1643819496109,3.48413772,2659.2,2658.5,0.188]
[1643819496410,1.04474605,2659.0,2658.3,0.1897072]
[1643819496609,0.4131944,2659.0,2658.3,0.0017072]
[1643819496808,0.3,2659.0,2658.3,0.0017072]
[1643819497009,0.93155165,2659.0,2658.3,0.0017072]
[1643819497412,2.37005,2659.1,2658.3,0.0017072]
[1643819497413,0.488,2659.1,2658.3,0.0017072]
[1643819497608,1.0,2659.0,2658.3,0.0017072]
[1643819497808,0.3,2659.1,2658.3,0.0017072]
[1643819498212,0.1131944,2659.0,2658.3,0.0017072]
[1643819498407,0.188,2658.9,2658.2,0.18954217]
[1643819498610,1.129,2658.9,2658.2,0.18954217]
[1643819498808,1.429,2658.9,2658.3,0.00164959]
[1643819499008,0.17642406,2658.8,2658.3,0.00164959]
[1643819499855,0.17642406,2658.8,2658.2,0.18954217]
[1643819500059,0.17642406,2658.8,2658.3,0.00493378]
[1643819500857,0.17642406,2658.8,2658.3,0.19293378]
[1643819501061,0.17642406,2658.8,2658.3,0.188]
[1643819501255,0.17642406,2658.8,2658.3,0.00493378]
[1643819501856,0.12642406,2658.8,2658.3,0.00493378]
[1643819502258,0.12642406,2658.8,2658.2,0.00154217]
[1643819502457,0.12642406,2658.8,2658.3,0.00482489]
[1643819502762,0.30482361,2659.0,2658.3,0.95401235]
[1643819502960,0.19282361,2659.0,2658.3,0.95401235]
[1643819503160,0.00482361,2659.0,2658.3,0.95401235]
[1643819503413,1.11955165,2659.5,2658.3,0.94918746]
[1643819503608,3.41568937,2659.4,2658.3,0.94918746]
[1643819503808,3.41568937,2659.4,2658.3,0.00482501]
[1643819503809,0.19815654,2658.9,2658.3,0.00482501]
[1643819504606,0.19815654,2658.9,2658.2,0.00154217]
[1643819505207,0.20138763,2658.5,2658.3,0.00482495]
[1643819506007,0.20138763,2658.5,2658.2,0.00154217]
[1643819506008,0.94097,2659.0,2658.2,0.00154217]
[1643819506208,3.51051441,2659.0,2658.3,0.00457011]
[1643819506412,2.06061845,2658.9,2658.3,0.00457011]
[1643819506611,3.06061845,2658.9,2658.3,0.00457011]
[1643819506910,3.36061845,2658.9,2658.3,0.00457011]
[1643819507163,2.4290668,2658.9,2658.2,0.00154217]
[1643819507363,2.4290668,2658.9,2658.3,2.85457011]
[1643819507560,0.9411,2658.8,2658.3,2.85457011]
[1643819507962,4.3112568,2658.9,2658.3,2.85457011]
[1643819507963,1.488,2658.9,2658.3,2.85457011]
[1643819508160,0.3,2658.9,2658.3,2.85457011]
[1643819508560,0.19407246,2658.6,2658.3,2.85457011]
[1643819509561,0.19407246,2658.6,2658.3,2.85]
[1643819509760,2.43365156,2659.0,2658.3,0.00466241]
[1643819509961,3.37468036,2659.0,2658.3,0.00466241]
[1643819510160,4.30623201,2659.0,2658.3,0.00466241]
[1643819510360,2.43365156,2659.0,2658.3,0.00466241]
[1643819511011,0.20158238,2658.7,2658.3,0.00466241]
[1643819511911,0.20158238,2658.7,2658.0,0.13662749]
[1643819512211,1.03625028,2658.9,2658.3,0.00434651]
[1643819512410,0.94105,2658.8,2658.3,0.00434651]
[1643819512611,3.57047927,2658.8,2658.3,0.00434651]
[1643819512811,1.0,2658.7,2658.3,0.00434651]
[1643819513013,2.62324728,2658.6,2658.3,0.00434651]
[1643819513217,2.62324728,2658.6,2657.9,0.00154238]
[1643819513411,1.0,2658.5,2657.9,0.00154238]
[1643819513613,0.22014593,2658.1,2657.9,0.00154238]
[1643819513813,0.22014593,2658.1,2657.8,0.188]
[1643819514313,1.94122,2658.5,2657.8,0.188]
[1643819514661,0.94122,2658.5,2657.9,0.00154238]
[1643819514856,1.94122,2658.5,2657.9,0.00154238]
[1643819515055,0.94122,2658.5,2657.9,0.00154238]
[1643819515455,0.16517133,2658.4,2657.9,0.00154238]
[1643819515858,0.00499084,2658.3,2658.0,0.00499153]
[1643819516858,0.16517133,2658.4,2657.9,0.00154238]
[1643819517060,0.00499088,2658.3,2658.0,0.00499147]
[1643819517262,0.00499088,2658.3,2658.0,0.01740982]
[1643819517460,0.00499088,2658.3,2658.1,1.78186951]
[1643819517659,0.00499088,2658.3,2658.1,0.188]
[1643819517860,9.088e-05,2658.3,2658.2,7.4437896]
[1643819518063,2.24364163,2659.3,2658.9,0.7942063]
[1643819518064,1.31208998,2659.3,2658.9,0.7942063]
[1643819518517,1.31208998,2659.3,2658.7,1.12859]
[1643819518713,1.31208998,2659.3,2658.7,0.94059]
[1643819518915,0.93155165,2659.5,2658.7,0.94059]
[1643819519115,1.23155165,2659.5,2658.7,0.94059]
[1643819519614,0.93155165,2659.5,2658.7,0.94059]
[1643819519814,0.93155165,2659.5,2658.8,0.87572848]
[1643819520218,0.93155165,2659.6,2658.8,0.87572848]
[1643819520420,0.93155165,2659.8,2658.9,1.59337823]
[1643819520618,0.00499024,2659.3,2659.0,0.64991905]
[1643819520818,0.00499024,2659.3,2659.0,0.64794244]
[1643819521217,0.00499024,2659.3,2659.2,6.03744836]
[1643819521518,9.024e-05,2659.3,2659.2,5.98662749]
[1643819521718,0.93155165,2660.2,2659.2,8.03176125]
[1643819521919,0.93155165,2660.2,2659.5,0.99999999]
[1643819522166,1.40474697,2660.5,2659.6,2.04495722]
[1643819522167,0.93155165,2660.5,2659.6,2.04495722]
[1643819522369,0.93155165,2660.6,2659.7,1.18789999]
[1643819522565,0.1879,2660.7,2659.7,1.18789999]
[1643819522566,0.93155165,2660.7,2660.3,0.84613813]
[1643819522767,0.93155165,2660.7,2660.3,1.78617813]
[1643819522966,0.93155165,2660.8,2660.4,0.0082257]
[1643819523567,0.93155165,2660.8,2660.7,4.53071273]
[1643819523764,0.93155165,2660.8,2660.7,2.36136861]
[1643819524164,0.93155165,2661.0,2660.4,4.6652]
[1643819524563,0.93155165,2661.0,2660.4,5.60516]
[1643819524764,0.93155165,2661.0,2660.5,0.73925789]
[1643819524967,0.93155165,2661.0,2660.6,0.93995]
[1643819525164,0.93155165,2661.0,2660.5,0.73925789]
[1643819525566,0.00498901,2660.9,2660.4,5.60516]
[1643819525768,0.93654066,2660.9,2660.4,4.6652]
[1643819526010,1.23654066,2660.9,2660.4,4.6652]
[1643819526216,0.93155165,2660.7,2659.8,4.7115]
[1643819526408,3.52180122,2660.6,2659.8,4.5236]
[1643819526608,0.1682397,2659.9,2659.8,4.5236]
[1643819526809,0.1879,2660.5,2659.8,4.5236]
[1643819526810,0.1879,2660.2,2659.8,4.5236]
[1643819527108,0.1879,2660.4,2659.8,4.5236]
[1643819527507,1.11945165,2660.4,2659.8,4.5236]
[1643819527807,0.93155165,2660.3,2659.8,4.5236]
[1643819528006,0.19288942,2660.2,2659.8,4.5236]
[1643819528207,0.17940994,2660.0,2659.3,6.1622]
[1643819528411,2.9827588,2660.0,2659.2,0.1879]
[1643819528608,1.11945165,2659.9,2659.2,0.1879]
[1643819528810,0.93155165,2659.8,2659.2,0.1879]
[1643819529008,0.188,2659.7,2659.2,0.1879]
[1643819529209,0.19229406,2659.3,2659.2,0.1879]
[1643819530556,0.19229406,2659.3,2658.8,4.5648]
[1643819531159,0.94084,2659.3,2658.8,4.5648]
[1643819531369,1.24084,2659.3,2658.8,4.5648]
[1643819531762,0.0043287,2659.4,2658.8,4.5648]
[1643819531763,0.3043287,2659.4,2658.9,0.76251076]
[1643819531962,0.0043287,2659.4,2658.8,4.5648]
[1643819532163,0.0043287,2659.4,2658.7,0.00432997]
[1643819532164,0.94084,2659.3,2658.7,0.00432997]
[1643819532367,3.92035202,2659.2,2658.7,0.00432997]
[1643819532563,3.92035202,2659.2,2658.3,4.6273]
[1643819532564,0.188,2659.1,2658.3,4.6273]
[1643819532763,1.188,2659.1,2658.3,4.6273]
[1643819532963,1.188,2659.1,2658.7,0.00433002]
[1643819533164,2.71518032,2659.0,2658.7,0.00433002]
[1643819533418,3.19109,2658.8,2658.7,0.00433002]
[1643819533616,6.34953349,2658.8,2658.7,0.00433002]
[1643819533818,4.49109,2658.8,2658.7,0.00433002]
[1643819534018,2.24109,2658.8,2658.7,0.00433002]
[1643819534215,2.24109,2658.8,2658.7,0.004987]
[1643819534216,1.24109,2658.8,2658.7,0.004987]
[1643819535018,1.24109,2658.8,2657.7,0.00154169]
[1643819535217,1.24109,2658.8,2658.6,0.00498695]
[1643819535718,2.24109,2658.8,2658.6,0.00498695]
[1643819535918,1.24109,2658.8,2658.6,0.00498695]
[1643819536117,1.24109,2658.8,2657.9,0.00154169]
[1643819536417,1.24109,2658.8,2658.6,0.00498698]
[1643819536818,2.24109,2658.8,2658.6,0.00498698]
[1643819537258,1.24109,2658.8,2658.6,0.00498698]
[1643819537459,1.24109,2658.8,2658.0,0.188]
[1643819537659,1.24109,2658.8,2658.6,0.00499082]
[1643819538657,1.24109,2658.8,2658.1,0.68730033]
[1643819538856,1.24109,2658.8,2658.6,0.00499082]
[1643819539263,1.488,2659.0,2658.6,0.00499082]
[1643819539658,1.488,2659.0,2658.1,0.68730033]
[1643819539857,1.488,2659.0,2658.0,0.188]
[1643819540058,1.488,2659.0,2658.7,0.00499077]
[1643819540258,0.488,2659.0,2658.7,0.00499077]
[1643819540458,2.42897,2659.0,2658.7,0.00499077]
[1643819540913,0.21359581,2658.9,2658.0,0.188]
[1643819541111,0.21359581,2658.9,2657.9,1.7174471]
[1643819541311,0.21359581,2658.9,2658.7,0.00499084]
[1643819542113,0.21359581,2658.9,2658.0,0.188]
[1643819542313,0.21359581,2658.9,2658.7,0.00499077]
[1643819542513,2.42897,2659.0,2658.7,0.00499077]
[1643819542715,0.188,2659.0,2658.7,0.00499077]
[1643819542914,1.07907997,2659.2,2658.7,0.00499077]
[1643819542915,0.188,2659.1,2658.7,0.00499077]
[1643819543115,0.13819997,2659.2,2658.7,0.00499077]
[1643819543615,0.13819997,2659.2,2658.4,0.10104848]
[1643819543814,0.00498944,2659.4,2658.7,0.0049909]
[1643819544017,0.00498944,2659.4,2658.7,0.00968657]
[1643819544659,0.93155165,2660.0,2658.6,8.07182726]
[1643819544861,7.4,2660.1,2659.2,0.92928137]
[1643819544862,1.14753107,2660.1,2659.2,0.92928137]
[1643819545061,1.14753107,2660.1,2659.1,0.94051]
[1643819545259,2.08811107,2660.1,2659.1,0.94051]
[1643819545458,2.08811107,2660.1,2658.8,3.29081979]
[1643819545459,2.08811107,2660.1,2658.8,3.29447674]
[1643819545657,2.08811107,2660.1,2658.9,0.188]
[1643819546057,2.08811107,2660.1,2659.2,0.77258026]
[1643819546257,2.38811107,2660.1,2659.2,0.77258026]
[1643819546457,2.57601107,2660.1,2659.2,0.77258026]
[1643819546658,0.93155165,2660.0,2659.2,0.77258026]
[1643819546960,1.0,2660.0,2658.9,2.06905]
[1643819547158,1.0,2660.0,2658.9,0.188]
[1643819547159,1.87220165,2659.8,2658.9,0.188]
[1643819547358,1.87220165,2659.8,2658.8,0.188]
[1643819547359,2.17220165,2659.8,2658.8,0.188]
[1643819547558,2.17220165,2659.8,2658.7,0.188]
[1643819547857,0.93155165,2659.7,2658.7,0.188]
[1643819548057,0.1743544,2659.6,2658.7,0.92186588]
[1643819548258,1.1150944,2659.6,2658.7,0.188]
[1643819548510,0.00499,2659.3,2658.7,0.188]
[1643819548709,0.00499,2659.3,2658.6,4.78909144]
[1643819549409,0.00499,2659.3,2658.7,0.74175883]
[1643819549615,1.94075,2659.5,2658.7,0.74175883]
[1643819549809,0.00499008,2659.1,2658.7,0.74175883]
[1643819550611,0.488,2659.6,2658.7,1.68237883]
[1643819550815,0.3,2659.6,2658.7,1.87037883]
[1643819551015,0.00499002,2659.1,2658.7,1.12862]
[1643819551215,0.00499002,2659.1,2658.9,0.17492705]
[1643819551414,0.00499002,2659.1,2659.0,4.22691034]
[1643819551815,0.3,2659.7,2659.0,4.22691034]
[1643819552163,2.11955165,2659.8,2659.0,4.22691034]
[1643819552164,0.00499009,2659.2,2659.0,4.22691034]
[1643819553163,1.41955165,2659.8,2659.0,4.22691034]
[1643819553361,0.00499006,2659.2,2659.0,4.22691034]
[1643819553566,0.00499006,2659.2,2659.1,8.69213317]
[1643819553765,0.00499006,2659.2,2659.1,5.85]
[1643819554266,0.93155165,2660.4,2659.1,5.85]
[1643819554467,7.4,2660.5,2659.8,0.19212024]
[1643819554769,7.4,2660.5,2659.6,4.5106]
[1643819554964,8.33155165,2660.5,2659.7,0.1879]
[1643819556008,0.93155165,2660.4,2659.7,0.1879]
[1643819556308,0.1706912,2660.1,2659.6,4.5106]
[1643819556505,0.93155165,2660.3,2659.6,4.5106]
[1643819556705,0.3,2660.4,2659.7,0.93370948]
[1643819556706,2.23155165,2660.4,2659.7,0.93370948]
[1643819556908,0.3,2660.4,2659.7,0.93370948]
[1643819557107,0.00498212,2660.2,2659.7,0.93370948]
[1643819557509,0.00498212,2660.2,2659.8,0.21351722]
[1643819557906,1.43937714,2660.6,2660.1,0.87836542]
[1643819557907,0.31992549,2660.6,2660.1,0.87836542]
[1643819558111,0.01992549,2660.6,2660.1,0.87836542]
[1643819558407,0.01992561,2660.5,2660.1,0.87836542]
[1643819559208,0.9341728,2660.7,2659.7,0.1879]
[1643819559408,0.00498196,2660.4,2659.7,0.1879]
[1643819560256,0.22272256,2660.3,2659.7,0.88962356]
[1643819560455,1.41945165,2660.5,2659.7,0.88962356]
[1643819560658,0.00498212,2660.2,2659.7,0.88962356]
[1643819561260,0.00498212,2660.2,2659.7,0.1879]
[1643819561460,0.93155165,2660.1,2659.7,0.1879]
[1643819561757,1.42413765,2660.1,2659.6,4.5106]
[1643819561959,1.23623765,2660.1,2659.6,4.5106]
[1643819562757,2.54098513,2660.0,2659.1,0.1879]
[1643819562958,0.93155165,2659.9,2659.0,4.5852]
[1643819563157,2.74419062,2659.8,2659.0,4.5852]
[1643819563427,1.0,2659.7,2659.0,5.5304648]
[1643819563627,0.188,2659.6,2659.0,5.5304648]
[1643819564227,0.00468635,2659.5,2659.0,5.5304648]
[1643819564430,0.00468635,2659.5,2659.0,4.5852]
[1643819565232,0.93155165,2659.6,2658.5,0.188]
[1643819565429,0.22786081,2659.4,2658.9,0.79263693]
[1643819565629,1.16863081,2659.4,2658.8,0.00467693]
[1643819565831,2.6028578,2659.3,2658.8,0.00467693]
[1643819566037,1.0,2659.2,2658.8,0.00467693]
[1643819566238,1.23155165,2659.1,2658.8,0.00467693]
[1643819566431,1.23155165,2659.1,2657.9,0.18954169]
[1643819566432,0.64,2659.0,2657.9,0.18954169]
[1643819566830,1.74083348,2659.0,2658.1,0.74640655]
[1643819567030,1.74083348,2659.0,2658.1,0.59173295]
[1643819567259,0.80928183,2659.0,2658.1,0.59173295]
[1643819567456,1.74083348,2659.0,2658.1,0.59173295]
[1643819567659,1.74083348,2659.0,2657.9,0.18954169]
[1643819567862,0.94104,2658.9,2657.9,0.18954169]
[1643819568058,0.18385902,2658.2,2657.9,0.18954169]
[1643819568261,0.452,2658.7,2657.9,0.00154169]
[1643819568566,5.08089149,2658.6,2657.9,0.00154169]
[1643819568761,5.08089149,2658.6,2656.7,0.01251766]
[1643819568762,0.74328269,2658.1,2657.6,0.00154169]
[1643819569059,0.74328269,2658.1,2657.8,0.01992245]
[1643819569060,1.13983296,2658.0,2657.8,0.01992245]
[1643819569260,3.4970038,2657.9,2657.8,0.01992245]
[1643819569559,3.6850038,2657.9,2657.8,0.01992245]
[1643819569761,4.6850038,2657.9,2657.8,0.01992245]
[1643819569958,4.6850038,2657.9,2657.1,0.00154169]
[1643819570159,2.13765329,2657.8,2657.1,0.00154169]
[1643819570365,1.49619329,2657.8,2657.7,0.00498015]
[1643819570762,0.19619329,2657.8,2657.7,0.00498015]
[1643819571023,0.49619329,2657.8,2657.7,0.00498015]
[1643819571240,1.88285,2657.7,2657.1,0.00154169]